[Event "*** Titled Tuesday Blitz"]
[Site "Chess.com"]
[Date "2020.04.14"]
[Round "6"]
[White "Klavdia_Nik"]
[Black "ChessFunMaker"]
[Result "1/2-1/2"]
[WhiteElo "2160"]
[BlackElo "2380"]
[TimeControl "180+1"]
[EndTime "11:04:46 PDT"]
[Termination "Game drawn - insufficient material"]

1. Nf3 {[%clk 0:03:00.9]} 1... Nf6 {[%clk 0:02:59.6]} 2. c4 {[%clk 0:03:01.1]}
2... g6 {[%clk 0:02:57.6]} 3. b3 {[%clk 0:03:01.3]} 3... Bg7 {[%clk 0:02:57.6]}
4. Bb2 {[%clk 0:03:01.9]} 4... d6 {[%clk 0:02:56.1]} 5. d4 {[%clk 0:03:01.5]}
5... O-O {[%clk 0:02:55.6]} 6. Nc3 {[%clk 0:03:02]} 6... Nbd7 {[%clk 0:02:52.8]}
7. e4 {[%clk 0:03:00]} 7... e5 {[%clk 0:02:50.5]} 8. Ke2 {[%clk 0:02:56.2]} 8...
exd4 {[%clk 0:02:10.7]} 9. Nxd4 {[%clk 0:02:55.2]} 9... Nc5 {[%clk 0:01:59.6]}
10. f3 {[%clk 0:02:54.6]} 10... Qe7 {[%clk 0:01:14.4]} 11. Kf2 {[%clk
0:02:50.4]} 11... Nfxe4+ {[%clk 0:00:59.5]} 12. fxe4 {[%clk 0:02:43.8]} 12...
Nxe4+ {[%clk 0:01:00.4]} 13. Nxe4 {[%clk 0:02:38]} 13... Qxe4 {[%clk 0:01:01.3]}
14. Qd3 {[%clk 0:02:18.5]} 14... Qxd3 {[%clk 0:00:51]} 15. Bxd3 {[%clk
0:02:17.7]} 15... c5 {[%clk 0:00:51.6]} 16. Nb5 {[%clk 0:02:08]} 16... Bxb2
{[%clk 0:00:50.7]} 17. Rae1 {[%clk 0:02:02.1]} 17... Be5 {[%clk 0:00:47.9]} 18.
Be4 {[%clk 0:01:57.1]} 18... a6 {[%clk 0:00:36]} 19. Nc7 {[%clk 0:01:54.8]}
19... Rb8 {[%clk 0:00:27.9]} 20. Nd5 {[%clk 0:01:54.9]} 20... b5 {[%clk
0:00:26.8]} 21. Ne7+ {[%clk 0:01:48.1]} 21... Kg7 {[%clk 0:00:26]} 22. Nxc8
{[%clk 0:01:48.3]} 22... Rfxc8 {[%clk 0:00:24.6]} 23. Bd5 {[%clk 0:01:47]} 23...
Rd8 {[%clk 0:00:13.6]} 24. Kf3 {[%clk 0:01:46.5]} 24... f5 {[%clk 0:00:06.6]}
25. g3 {[%clk 0:01:46.7]} 25... Kf6 {[%clk 0:00:04.8]} 26. Re2 {[%clk
0:01:45.7]} 26... bxc4 {[%clk 0:00:03.6]} 27. bxc4 {[%clk 0:01:40.6]} 27... Rb4
{[%clk 0:00:02.9]} 28. Rhe1 {[%clk 0:01:40.3]} 28... Rdb8 {[%clk 0:00:03.1]} 29.
h4 {[%clk 0:01:38.2]} 29... Ra4 {[%clk 0:00:03.2]} 30. Kg2 {[%clk 0:01:26.5]}
30... Ra3 {[%clk 0:00:03.6]} 31. Bf3 {[%clk 0:01:26.3]} 31... Rb4 {[%clk
0:00:01.7]} 32. Rc1 {[%clk 0:01:26.3]} 32... Rba4 {[%clk 0:00:01.8]} 33. Rcc2
{[%clk 0:01:26.1]} 33... Rxa2 {[%clk 0:00:02.3]} 34. Rxa2 {[%clk 0:01:25.3]}
34... Rxc4 {[%clk 0:00:02.9]} 35. Rxa6 {[%clk 0:01:22.8]} 35... Rc1 {[%clk
0:00:02.2]} 36. Rd2 {[%clk 0:01:09.5]} 36... Rc3 {[%clk 0:00:02.5]} 37. Rc6
{[%clk 0:01:07.1]} 37... Rc1 {[%clk 0:00:02]} 38. Rc8 {[%clk 0:01:05.3]} 38...
Rc3 {[%clk 0:00:02.5]} 39. Rg8 {[%clk 0:01:03.4]} 39... Kf7 {[%clk 0:00:02.3]}
40. Rd8 {[%clk 0:01:01.7]} 40... Kf6 {[%clk 0:00:02.1]} 41. R8xd6+ {[%clk
0:01:00.5]} 41... Bxd6 {[%clk 0:00:02.3]} 42. Rxd6+ {[%clk 0:01:00.7]} 42... Ke5
{[%clk 0:00:02.7]} 43. Rd5+ {[%clk 0:00:58.6]} 43... Ke6 {[%clk 0:00:02.4]} 44.
Rd8 {[%clk 0:00:56.5]} 44... Rc2+ {[%clk 0:00:02.2]} 45. Kh3 {[%clk 0:00:55.8]}
45... Rc3 {[%clk 0:00:02.5]} 46. Bd5+ {[%clk 0:00:54.7]} 46... Ke7 {[%clk
0:00:03]} 47. Rh8 {[%clk 0:00:52.5]} 47... f4 {[%clk 0:00:03.4]} 48. Kg4 {[%clk
0:00:47.9]} 48... fxg3 {[%clk 0:00:02.9]} 49. Rxh7+ {[%clk 0:00:46.7]} 49... Kd6
{[%clk 0:00:03.1]} 50. Bf3 {[%clk 0:00:47]} 50... c4 {[%clk 0:00:01.5]} 51. Kxg3
{[%clk 0:00:47.3]} 51... Rd3 {[%clk 0:00:01.9]} 52. Rh6 {[%clk 0:00:46.7]} 52...
c3 {[%clk 0:00:01.5]} 53. Rxg6+ {[%clk 0:00:47]} 53... Ke5 {[%clk 0:00:02]} 54.
Rg8 {[%clk 0:00:43.7]} 54... c2 {[%clk 0:00:01.3]} 55. Rc8 {[%clk 0:00:43.8]}
55... Rd2 {[%clk 0:00:01.7]} 56. Kg4 {[%clk 0:00:42.1]} 56... Kd4 {[%clk
0:00:02.1]} 57. h5 {[%clk 0:00:42.3]} 57... Ke3 {[%clk 0:00:01.8]} 58. h6 {[%clk
0:00:39.1]} 58... Rh2 {[%clk 0:00:02.2]} 59. Rc6 {[%clk 0:00:29.3]} 59... Kd2
{[%clk 0:00:02.1]} 60. Be4 {[%clk 0:00:26.9]} 60... c1=Q {[%clk 0:00:02.3]} 61.
Rxc1 {[%clk 0:00:26.7]} 61... Kxc1 {[%clk 0:00:03.2]} 62. h7 {[%clk 0:00:27.1]}
62... Kd2 {[%clk 0:00:02.6]} 63. Kg5 {[%clk 0:00:25.8]} 63... Ke3 {[%clk
0:00:02.9]} 64. Bg6 {[%clk 0:00:25.4]} 64... Kd4 {[%clk 0:00:02.4]} 65. Kf6
{[%clk 0:00:25.9]} 65... Kc5 {[%clk 0:00:01.6]} 66. Kg7 {[%clk 0:00:26.4]} 66...
Rxh7+ {[%clk 0:00:01.1]} 67. Bxh7 {[%clk 0:00:26.1]} 1/2-1/2

[Event "*** Titled Tuesday Blitz"]
[Site "Chess.com"]
[Date "2020.04.14"]
[Round "6"]
[White "JelenaKarleusa-SO-18"]
[Black "igorkovalenko"]
[Result "0-1"]
[WhiteElo "2701"]
[BlackElo "2906"]
[TimeControl "180+1"]
[EndTime "11:04:49 PDT"]
[Termination "igorkovalenko won by resignation"]

1. e4 {[%clk 0:03:00.9]} 1... c5 {[%clk 0:03:00]} 2. Nc3 {[%clk 0:02:56.6]} 2...
Nc6 {[%clk 0:02:57.9]} 3. Bb5 {[%clk 0:02:54]} 3... Nd4 {[%clk 0:02:21.2]} 4.
Nf3 {[%clk 0:02:53.4]} 4... Nxb5 {[%clk 0:02:06.6]} 5. Nxb5 {[%clk 0:02:54.3]}
5... a6 {[%clk 0:02:07.4]} 6. Nc3 {[%clk 0:02:54.2]} 6... b5 {[%clk 0:02:07.9]}
7. d4 {[%clk 0:02:51.5]} 7... b4 {[%clk 0:02:05.5]} 8. Na4 {[%clk 0:02:42]} 8...
cxd4 {[%clk 0:02:03.9]} 9. Qxd4 {[%clk 0:02:42.9]} 9... e6 {[%clk 0:02:02.3]}
10. Bf4 {[%clk 0:02:31.8]} 10... Qa5 {[%clk 0:01:54.6]} 11. b3 {[%clk
0:02:29.1]} 11... Nf6 {[%clk 0:01:31.8]} 12. O-O {[%clk 0:01:42.2]} 12... Bb7
{[%clk 0:01:28.8]} 13. Qb6 {[%clk 0:01:24.1]} 13... Qb5 {[%clk 0:01:20.3]} 14.
e5 {[%clk 0:00:42.3]} 14... Nd5 {[%clk 0:01:17.3]} 15. Qd4 {[%clk 0:00:41.6]}
15... Rc8 {[%clk 0:01:10.1]} 16. Rac1 {[%clk 0:00:40.1]} 16... h6 {[%clk
0:00:56.8]} 17. Nd2 {[%clk 0:00:30.6]} 17... Qc6 {[%clk 0:00:47.4]} 18. f3
{[%clk 0:00:23.3]} 18... Nc3 {[%clk 0:00:37.4]} 19. Nxc3 {[%clk 0:00:21.9]}
19... Bc5 {[%clk 0:00:36.6]} 20. Ne2 {[%clk 0:00:17.7]} 20... O-O {[%clk
0:00:32.7]} 21. Be3 {[%clk 0:00:17.2]} 21... Bxd4 {[%clk 0:00:32.7]} 22. Nxd4
{[%clk 0:00:18.1]} 22... Qd5 {[%clk 0:00:31.4]} 23. Rfe1 {[%clk 0:00:17.8]}
23... Qxe5 {[%clk 0:00:29]} 24. Nc4 {[%clk 0:00:18.2]} 24... Rxc4 {[%clk
0:00:28.3]} 25. bxc4 {[%clk 0:00:18.1]} 25... Qc7 {[%clk 0:00:29]} 26. c5 {[%clk
0:00:18]} 26... Bd5 {[%clk 0:00:27.1]} 27. c3 {[%clk 0:00:17.1]} 27... a5 {[%clk
0:00:21.5]} 28. cxb4 {[%clk 0:00:15.3]} 28... axb4 {[%clk 0:00:22.4]} 29. Re2
{[%clk 0:00:13.5]} 29... Ra8 {[%clk 0:00:21.8]} 30. Rb2 {[%clk 0:00:14]} 30...
Rxa2 {[%clk 0:00:17.5]} 31. Rxb4 {[%clk 0:00:14.3]} 31... Qe5 {[%clk 0:00:16.6]}
32. Bf2 {[%clk 0:00:12.7]} 32... Qg5 {[%clk 0:00:16.6]} 33. Rf1 {[%clk
0:00:11.6]} 33... e5 {[%clk 0:00:16.7]} 34. Nb3 {[%clk 0:00:04]} 34... Bxf3
{[%clk 0:00:16.4]} 35. g3 {[%clk 0:00:02.4]} 35... Qh5 {[%clk 0:00:15.8]} 36.
Rh4 {[%clk 0:00:03]} 36... Qg6 {[%clk 0:00:15.2]} 37. Nc1 {[%clk 0:00:03.6]}
37... Bc6 {[%clk 0:00:15]} 38. Nxa2 {[%clk 0:00:03.5]} 38... Qd3 {[%clk
0:00:13.8]} 39. Nc3 {[%clk 0:00:03.9]} 39... Qf3 {[%clk 0:00:13.1]} 40. Ne4
{[%clk 0:00:02.5]} 40... Bxe4 {[%clk 0:00:13.4]} 41. Rxe4 {[%clk 0:00:03.4]}
41... Qxe4 {[%clk 0:00:13.9]} 42. Re1 {[%clk 0:00:04.2]} 42... Qc6 {[%clk
0:00:14.1]} 43. Rxe5 {[%clk 0:00:04.2]} 43... Kh7 {[%clk 0:00:14.7]} 44. Re8
{[%clk 0:00:04.7]} 44... f6 {[%clk 0:00:15.1]} 45. Re1 {[%clk 0:00:05.3]} 45...
d5 {[%clk 0:00:15.5]} 46. Rd1 {[%clk 0:00:06]} 46... Kg6 {[%clk 0:00:15]} 47.
Rd2 {[%clk 0:00:06.6]} 47... h5 {[%clk 0:00:15.5]} 48. Bd4 {[%clk 0:00:07]}
48... Kf5 {[%clk 0:00:15.9]} 49. Kf2 {[%clk 0:00:07.6]} 49... Ke4 {[%clk
0:00:16.4]} 50. Be3 {[%clk 0:00:08]} 50... Qd7 {[%clk 0:00:15.9]} 51. Rd4+
{[%clk 0:00:08.4]} 51... Ke5 {[%clk 0:00:16]} 52. h4 {[%clk 0:00:09]} 52... Qf5+
{[%clk 0:00:16.2]} 53. Rf4 {[%clk 0:00:09]} 53... Qc2+ {[%clk 0:00:16.2]} 54.
Kf3 {[%clk 0:00:09.6]} 54... Qd3 {[%clk 0:00:16.5]} 55. Rd4 {[%clk 0:00:09.3]}
55... Qf1+ {[%clk 0:00:16.8]} 56. Bf2 {[%clk 0:00:08.9]} 56... g5 {[%clk
0:00:16.9]} 57. hxg5 {[%clk 0:00:09.2]} 57... fxg5 {[%clk 0:00:17.8]} 58. Rd2
{[%clk 0:00:07.9]} 58... Qh1+ {[%clk 0:00:17.5]} 59. Ke2 {[%clk 0:00:08]} 59...
h4 {[%clk 0:00:17.2]} 60. gxh4 {[%clk 0:00:08.1]} 60... gxh4 {[%clk 0:00:18.1]}
61. c6 {[%clk 0:00:07.9]} 61... Qe4+ {[%clk 0:00:17.9]} 62. Kf1 {[%clk
0:00:07.9]} 62... Qc4+ {[%clk 0:00:16.2]} 63. Re2+ {[%clk 0:00:07.2]} 63... Kf4
{[%clk 0:00:16.1]} 64. c7 {[%clk 0:00:07.4]} 64... Kf3 {[%clk 0:00:16.4]} 65.
Kg1 {[%clk 0:00:07]} 65... Qxe2 {[%clk 0:00:16.4]} 66. c8=Q {[%clk 0:00:06.9]}
66... Qxf2+ {[%clk 0:00:16.9]} 0-1

[Event "*** Titled Tuesday Blitz"]
[Site "Chess.com"]
[Date "2020.04.14"]
[Round "6"]
[White "RaphCamora"]
[Black "nfds"]
[Result "1/2-1/2"]
[WhiteElo "2430"]
[BlackElo "2578"]
[TimeControl "180+1"]
[EndTime "11:04:50 PDT"]
[Termination "Game drawn - insufficient material"]

1. e4 {[%clk 0:03:00.9]} 1... e5 {[%clk 0:02:58.2]} 2. Nf3 {[%clk 0:02:59.8]}
2... Nc6 {[%clk 0:02:57.4]} 3. Bc4 {[%clk 0:02:59.4]} 3... Bc5 {[%clk
0:02:55.4]} 4. d3 {[%clk 0:02:59.2]} 4... Nf6 {[%clk 0:02:52.3]} 5. O-O {[%clk
0:02:58.5]} 5... O-O {[%clk 0:02:51.9]} 6. Bg5 {[%clk 0:02:57.3]} 6... h6 {[%clk
0:02:49.9]} 7. Bh4 {[%clk 0:02:55.1]} 7... Be7 {[%clk 0:02:48.6]} 8. Bg3 {[%clk
0:02:52.2]} 8... d6 {[%clk 0:02:45.3]} 9. a4 {[%clk 0:02:51.4]} 9... Bg4 {[%clk
0:02:37]} 10. h3 {[%clk 0:02:45.2]} 10... Be6 {[%clk 0:02:27]} 11. Nc3 {[%clk
0:02:33.7]} 11... Qd7 {[%clk 0:02:19.1]} 12. a5 {[%clk 0:01:40]} 12... Nd4
{[%clk 0:02:01.6]} 13. Bxe6 {[%clk 0:01:20.1]} 13... fxe6 {[%clk 0:01:56.2]} 14.
Nd2 {[%clk 0:01:18.5]} 14... Qe8 {[%clk 0:01:41]} 15. Ne2 {[%clk 0:01:17.5]}
15... Nh5 {[%clk 0:01:36.4]} 16. Bh2 {[%clk 0:01:15.8]} 16... Qg6 {[%clk
0:01:26]} 17. Nxd4 {[%clk 0:01:13.1]} 17... exd4 {[%clk 0:01:26.9]} 18. f4
{[%clk 0:01:06.2]} 18... Kh8 {[%clk 0:00:46.8]} 19. Qg4 {[%clk 0:00:37.6]} 19...
Qxg4 {[%clk 0:00:41.9]} 20. hxg4 {[%clk 0:00:38.5]} 20... Nf6 {[%clk 0:00:42.7]}
21. Nf3 {[%clk 0:00:38.2]} 21... c5 {[%clk 0:00:29.3]} 22. g5 {[%clk 0:00:38.2]}
22... Ng4 {[%clk 0:00:25.1]} 23. gxh6 {[%clk 0:00:26.3]} 23... gxh6 {[%clk
0:00:24.4]} 24. Bg3 {[%clk 0:00:25.8]} 24... Ne3 {[%clk 0:00:16.7]} 25. Rf2
{[%clk 0:00:25.8]} 25... Rg8 {[%clk 0:00:15.2]} 26. Bh4 {[%clk 0:00:25.5]} 26...
Bxh4 {[%clk 0:00:12.6]} 27. Nxh4 {[%clk 0:00:26.4]} 27... Rg4 {[%clk 0:00:12.2]}
28. Nf3 {[%clk 0:00:24.1]} 28... Rxf4 {[%clk 0:00:11.4]} 29. c3 {[%clk
0:00:23.8]} 29... Raf8 {[%clk 0:00:09.9]} 30. cxd4 {[%clk 0:00:23.1]} 30... cxd4
{[%clk 0:00:10.8]} 31. Rc1 {[%clk 0:00:17.7]} 31... R4f7 {[%clk 0:00:08.6]} 32.
b4 {[%clk 0:00:12.8]} 32... e5 {[%clk 0:00:08.6]} 33. b5 {[%clk 0:00:12.5]}
33... h5 {[%clk 0:00:08.7]} 34. b6 {[%clk 0:00:12.6]} 34... axb6 {[%clk
0:00:08.9]} 35. axb6 {[%clk 0:00:13.5]} 35... h4 {[%clk 0:00:09.3]} 36. Rc7
{[%clk 0:00:12.5]} 36... Rxc7 {[%clk 0:00:07.4]} 37. bxc7 {[%clk 0:00:13.4]}
37... Rc8 {[%clk 0:00:06.3]} 38. Nxh4 {[%clk 0:00:13.9]} 38... Rxc7 {[%clk
0:00:06.5]} 39. Ng6+ {[%clk 0:00:14]} 39... Kg7 {[%clk 0:00:06.1]} 40. Nf8
{[%clk 0:00:14.2]} 40... Rf7 {[%clk 0:00:05.6]} 41. Ne6+ {[%clk 0:00:13.2]}
41... Kg6 {[%clk 0:00:05.4]} 42. Rxf7 {[%clk 0:00:14.1]} 42... Kxf7 {[%clk
0:00:05.4]} 43. Nd8+ {[%clk 0:00:15]} 43... Kf6 {[%clk 0:00:04.9]} 44. Nxb7
{[%clk 0:00:15.9]} 44... Kg5 {[%clk 0:00:04.7]} 45. Nxd6 {[%clk 0:00:15.3]}
45... Kf4 {[%clk 0:00:03.7]} 46. Kf2 {[%clk 0:00:14.9]} 46... Ng4+ {[%clk
0:00:03.6]} 47. Ke2 {[%clk 0:00:14.9]} 47... Nh2 {[%clk 0:00:03.6]} 48. Nf7
{[%clk 0:00:14]} 48... Ng4 {[%clk 0:00:03.3]} 49. Nd6 {[%clk 0:00:10]} 49... Kg3
{[%clk 0:00:03]} 50. Nf5+ {[%clk 0:00:09.5]} 50... Kxg2 {[%clk 0:00:02.1]} 51.
Nh4+ {[%clk 0:00:10]} 51... Kg3 {[%clk 0:00:02]} 52. Nf3 {[%clk 0:00:10.5]}
52... Kf4 {[%clk 0:00:02.7]} 53. Nh4 {[%clk 0:00:10.7]} 53... Kg3 {[%clk
0:00:02.6]} 54. Ng6 {[%clk 0:00:10.7]} 54... Ne3 {[%clk 0:00:02.4]} 55. Nxe5
{[%clk 0:00:10.6]} 55... Kf4 {[%clk 0:00:02.4]} 56. Nc6 {[%clk 0:00:10.8]} 56...
Nc2 {[%clk 0:00:02]} 57. Kd2 {[%clk 0:00:11.1]} 57... Ne3 {[%clk 0:00:01.6]} 58.
Nxd4 {[%clk 0:00:11.4]} 58... Ng2 {[%clk 0:00:02.4]} 59. Nc2 {[%clk 0:00:10.1]}
59... Ke5 {[%clk 0:00:02.3]} 60. Kc3 {[%clk 0:00:10.3]} 60... Nf4 {[%clk
0:00:01.8]} 61. Nb4 {[%clk 0:00:10]} 61... Ne6 {[%clk 0:00:01.6]} 62. Nd5 {[%clk
0:00:10]} 62... Nc5 {[%clk 0:00:01.3]} 63. Ne3 {[%clk 0:00:07.2]} 63... Nxe4+
{[%clk 0:00:01.4]} 64. dxe4 {[%clk 0:00:06.3]} 64... Kxe4 {[%clk 0:00:02.3]}
1/2-1/2

[Event "*** Titled Tuesday Blitz"]
[Site "Chess.com"]
[Date "2020.04.14"]
[Round "6"]
[White "maxip32"]
[Black "sergeikim"]
[Result "1-0"]
[WhiteElo "2428"]
[BlackElo "2364"]
[TimeControl "180+1"]
[EndTime "11:04:51 PDT"]
[Termination "maxip32 won on time"]

1. e4 {[%clk 0:03:00.9]} 1... e5 {[%clk 0:02:59.2]} 2. Nf3 {[%clk 0:02:57.8]}
2... Nc6 {[%clk 0:02:59.2]} 3. Bc4 {[%clk 0:02:57.7]} 3... Bc5 {[%clk
0:02:58.2]} 4. O-O {[%clk 0:02:57]} 4... Nf6 {[%clk 0:02:58.2]} 5. d3 {[%clk
0:02:56.8]} 5... d6 {[%clk 0:02:58.3]} 6. c3 {[%clk 0:02:56]} 6... a6 {[%clk
0:02:58.4]} 7. a4 {[%clk 0:02:55.6]} 7... Ba7 {[%clk 0:02:58.2]} 8. Na3 {[%clk
0:02:54.5]} 8... O-O {[%clk 0:02:57.7]} 9. Nc2 {[%clk 0:02:54]} 9... Nh5 {[%clk
0:02:57.2]} 10. Nxe5 {[%clk 0:02:30.1]} 10... Nxe5 {[%clk 0:02:55.3]} 11. Qxh5
{[%clk 0:02:29.9]} 11... b5 {[%clk 0:02:55]} 12. Bd5 {[%clk 0:02:18.8]} 12... c6
{[%clk 0:02:54.4]} 13. d4 {[%clk 0:02:14.8]} 13... cxd5 {[%clk 0:02:36.1]} 14.
dxe5 {[%clk 0:02:14.6]} 14... dxe4 {[%clk 0:02:35.7]} 15. Be3 {[%clk 0:02:11.1]}
15... Bxe3 {[%clk 0:02:24.9]} 16. Nxe3 {[%clk 0:02:10]} 16... dxe5 {[%clk
0:02:22.1]} 17. Qxe5 {[%clk 0:02:07.5]} 17... Re8 {[%clk 0:02:19.9]} 18. Qc5
{[%clk 0:02:01.5]} 18... bxa4 {[%clk 0:02:08.1]} 19. Rfd1 {[%clk 0:01:55]} 19...
Qh4 {[%clk 0:02:00.7]} 20. Rxa4 {[%clk 0:01:52.8]} 20... Be6 {[%clk 0:01:37]}
21. Rad4 {[%clk 0:01:43.8]} 21... Bb3 {[%clk 0:01:24.1]} 22. R1d2 {[%clk
0:01:42.4]} 22... Qf6 {[%clk 0:01:17.4]} 23. Qf5 {[%clk 0:01:38.1]} 23... Qxf5
{[%clk 0:01:13.9]} 24. Nxf5 {[%clk 0:01:39]} 24... a5 {[%clk 0:01:12.9]} 25. Re2
{[%clk 0:01:30.8]} 25... a4 {[%clk 0:01:03.4]} 26. h3 {[%clk 0:01:03.6]} 26...
Re6 {[%clk 0:00:47.8]} 27. Rdxe4 {[%clk 0:00:59.4]} 27... Rxe4 {[%clk
0:00:44.8]} 28. Rxe4 {[%clk 0:01:00.3]} 28... Bc2 {[%clk 0:00:42.8]} 29. Ne7+
{[%clk 0:00:45.1]} 29... Kf8 {[%clk 0:00:42.2]} 30. Re3 {[%clk 0:00:45.3]} 30...
Rb8 {[%clk 0:00:39.5]} 31. Nc6 {[%clk 0:00:24.8]} 31... Rxb2 {[%clk 0:00:38.4]}
32. Re5 {[%clk 0:00:25]} 32... g6 {[%clk 0:00:32.7]} 33. Ra5 {[%clk 0:00:23.7]}
33... Rb6 {[%clk 0:00:27.3]} 34. Ne5 {[%clk 0:00:17.1]} 34... Rb7 {[%clk
0:00:24.9]} 35. c4 {[%clk 0:00:16.8]} 35... f6 {[%clk 0:00:23.5]} 36. Nf3 {[%clk
0:00:16.5]} 36... Rc7 {[%clk 0:00:22.3]} 37. c5 {[%clk 0:00:16.7]} 37... Bb3
{[%clk 0:00:19.4]} 38. Nd4 {[%clk 0:00:17.6]} 38... Ke7 {[%clk 0:00:17.9]} 39.
c6 {[%clk 0:00:15.2]} 39... f5 {[%clk 0:00:15.3]} 40. Kf1 {[%clk 0:00:14.4]}
40... Kf6 {[%clk 0:00:13.2]} 41. f4 {[%clk 0:00:14.5]} 41... h6 {[%clk
0:00:12.3]} 42. Kf2 {[%clk 0:00:14.4]} 42... g5 {[%clk 0:00:12.4]} 43. g3 {[%clk
0:00:15]} 43... gxf4 {[%clk 0:00:11.8]} 44. gxf4 {[%clk 0:00:15.9]} 44... Ke7
{[%clk 0:00:10]} 45. Ke3 {[%clk 0:00:15.3]} 45... Bd1 {[%clk 0:00:07.7]} 46.
Nxf5+ {[%clk 0:00:13.7]} 46... Ke6 {[%clk 0:00:07.7]} 47. Nd4+ {[%clk
0:00:14.1]} 47... Ke7 {[%clk 0:00:07]} 48. Re5+ {[%clk 0:00:13.1]} 48... Kd6
{[%clk 0:00:06.3]} 49. Nb5+ {[%clk 0:00:12.5]} 49... Kxc6 {[%clk 0:00:06.4]} 50.
Nxc7 {[%clk 0:00:13.4]} 50... Kxc7 {[%clk 0:00:06.6]} 51. Rd5 {[%clk 0:00:11.7]}
51... Bb3 {[%clk 0:00:04.6]} 52. Rd3 {[%clk 0:00:11.1]} 52... Kc6 {[%clk
0:00:04.6]} 53. Kd4 {[%clk 0:00:11.3]} 53... Be6 {[%clk 0:00:03.6]} 54. Ke5
{[%clk 0:00:10.1]} 54... Bc4 {[%clk 0:00:03]} 55. Rc3 {[%clk 0:00:09.8]} 55...
Kc5 {[%clk 0:00:03]} 56. f5 {[%clk 0:00:09.4]} 56... Kb4 {[%clk 0:00:03.1]} 57.
Kd4 {[%clk 0:00:09.7]} 57... Bf7 {[%clk 0:00:02.2]} 58. f6 {[%clk 0:00:08.3]}
58... a3 {[%clk 0:00:01.7]} 59. Rc7 {[%clk 0:00:08.1]} 59... a2 {[%clk
0:00:01.5]} 60. Ra7 {[%clk 0:00:07.6]} 1-0

[Event "*** Titled Tuesday Blitz"]
[Site "Chess.com"]
[Date "2020.04.14"]
[Round "6"]
[White "Kobalia"]
[Black "BahadirOzen"]
[Result "1/2-1/2"]
[WhiteElo "2669"]
[BlackElo "2831"]
[TimeControl "180+1"]
[EndTime "11:04:52 PDT"]
[Termination "Game drawn by repetition"]

1. e4 {[%clk 0:03:00.9]} 1... e5 {[%clk 0:02:59.9]} 2. Nf3 {[%clk 0:03:00.4]}
2... Nc6 {[%clk 0:03:00]} 3. Bb5 {[%clk 0:02:59.8]} 3... Nf6 {[%clk 0:03:00.1]}
4. d3 {[%clk 0:02:57.5]} 4... Bc5 {[%clk 0:03:00.2]} 5. O-O {[%clk 0:02:56.8]}
5... Nd4 {[%clk 0:03:00]} 6. Nxd4 {[%clk 0:02:56.8]} 6... Bxd4 {[%clk
0:03:00.9]} 7. Nd2 {[%clk 0:02:56.6]} 7... c6 {[%clk 0:02:55.7]} 8. Ba4 {[%clk
0:02:56.3]} 8... Bb6 {[%clk 0:02:53.5]} 9. Nf3 {[%clk 0:02:51.7]} 9... d6 {[%clk
0:02:35.3]} 10. c3 {[%clk 0:02:49.9]} 10... O-O {[%clk 0:02:34.6]} 11. Bg5
{[%clk 0:02:48.9]} 11... h6 {[%clk 0:02:33.9]} 12. Bh4 {[%clk 0:02:49]} 12... g5
{[%clk 0:02:27.7]} 13. Bg3 {[%clk 0:02:44.5]} 13... Bg4 {[%clk 0:02:26.7]} 14.
Re1 {[%clk 0:02:35.2]} 14... Re8 {[%clk 0:02:20.3]} 15. d4 {[%clk 0:02:32.7]}
15... exd4 {[%clk 0:02:01.4]} 16. Qd3 {[%clk 0:02:00.7]} 16... dxc3 {[%clk
0:01:41.9]} 17. bxc3 {[%clk 0:02:00.1]} 17... Nh5 {[%clk 0:01:42]} 18. Qxd6
{[%clk 0:01:51.6]} 18... Bxf3 {[%clk 0:01:12.8]} 19. gxf3 {[%clk 0:01:48.9]}
19... Nxg3 {[%clk 0:01:05.7]} 20. Qxg3 {[%clk 0:01:39.5]} 20... Qf6 {[%clk
0:00:57.3]} 21. Rad1 {[%clk 0:01:36.8]} 21... Rad8 {[%clk 0:00:56.8]} 22. Bb3
{[%clk 0:01:25.5]} 22... Kg7 {[%clk 0:00:49.8]} 23. Kg2 {[%clk 0:01:22.6]} 23...
Bc5 {[%clk 0:00:28.8]} 24. e5 {[%clk 0:01:18.7]} 24... Qf4 {[%clk 0:00:28.9]}
25. Re4 {[%clk 0:00:56.3]} 25... Qf5 {[%clk 0:00:25]} 26. Rxd8 {[%clk
0:00:48.1]} 26... Rxd8 {[%clk 0:00:25]} 27. e6 {[%clk 0:00:48.5]} 27... f6
{[%clk 0:00:20.1]} 28. Qg4 {[%clk 0:00:38.3]} 28... Qxg4+ {[%clk 0:00:18.8]} 29.
fxg4 {[%clk 0:00:38]} 29... Be7 {[%clk 0:00:19.7]} 30. Kf3 {[%clk 0:00:34.1]}
30... Kf8 {[%clk 0:00:19.6]} 31. Ke2 {[%clk 0:00:29.9]} 31... Bd6 {[%clk
0:00:16.9]} 32. h4 {[%clk 0:00:19.5]} 32... Ke7 {[%clk 0:00:16.6]} 33. h5 {[%clk
0:00:19.7]} 33... Be5 {[%clk 0:00:16.3]} 34. Re3 {[%clk 0:00:18.7]} 34... Bf4
{[%clk 0:00:15.6]} 35. Rd3 {[%clk 0:00:18.9]} 35... Bd6 {[%clk 0:00:08.5]} 36.
Kf3 {[%clk 0:00:17.2]} 36... f5 {[%clk 0:00:05.3]} 37. gxf5 {[%clk 0:00:15.4]}
37... Kf6 {[%clk 0:00:05.9]} 38. Ke4 {[%clk 0:00:14.8]} 38... Be7 {[%clk
0:00:05.2]} 39. Rd7 {[%clk 0:00:13.9]} 39... Rxd7 {[%clk 0:00:04]} 40. exd7
{[%clk 0:00:14.1]} 40... Bd8 {[%clk 0:00:04.1]} 41. Be6 {[%clk 0:00:13.6]} 41...
Ke7 {[%clk 0:00:03.9]} 42. Ke5 {[%clk 0:00:12.1]} 42... Bc7+ {[%clk 0:00:04.3]}
43. Ke4 {[%clk 0:00:12.3]} 43... Kf6 {[%clk 0:00:05.2]} 44. f3 {[%clk
0:00:11.7]} 44... Ke7 {[%clk 0:00:05.5]} 45. Kd3 {[%clk 0:00:08.9]} 45... a5
{[%clk 0:00:05]} 46. a4 {[%clk 0:00:08.2]} 46... Kd6 {[%clk 0:00:04.4]} 47. Ke4
{[%clk 0:00:07.3]} 47... Ke7 {[%clk 0:00:04.8]} 48. c4 {[%clk 0:00:07.1]} 48...
Kf6 {[%clk 0:00:05.1]} 49. c5 {[%clk 0:00:06.5]} 49... Ke7 {[%clk 0:00:05.6]}
50. Kd3 {[%clk 0:00:05.6]} 50... Kf6 {[%clk 0:00:05.7]} 51. Kc4 {[%clk
0:00:05.8]} 51... Ke7 {[%clk 0:00:06.1]} 52. d8=Q+ {[%clk 0:00:05.3]} 52... Bxd8
{[%clk 0:00:06.3]} 53. Bc8 {[%clk 0:00:05.2]} 53... b6 {[%clk 0:00:06.9]} 54.
Bb7 {[%clk 0:00:02.8]} 54... Kd7 {[%clk 0:00:07.1]} 55. cxb6 {[%clk 0:00:02.2]}
55... Bxb6 {[%clk 0:00:06.9]} 56. Ba8 {[%clk 0:00:02.7]} 56... Ba7 {[%clk
0:00:06.4]} 57. Bb7 {[%clk 0:00:02.8]} 57... Bb6 {[%clk 0:00:06.8]} 58. Ba8
{[%clk 0:00:03.1]} 58... Ba7 {[%clk 0:00:07.2]} 59. Bb7 {[%clk 0:00:03.4]} 59...
Bb6 {[%clk 0:00:07.6]} 1/2-1/2